fUST/lending_fUST_20250601
["ID","MTS","AMOUNT","RATE_DAILY","PERIOD"]
[363395030,1748717441182,-430.0,0.00018082,2]
[363395032,1748717441192,-430.0,0.00018082,2]
[363395034,1748717441202,-460.21,0.00018082,2]
[363395036,1748717441212,-1487.83,0.00018082,2]
[363395038,1748717441222,-430.0,0.00018082,2]
[363395040,1748717441232,-430.0,0.00018082,2]
[363395042,1748717441241,-430.0,0.00018082,2]
[363395044,1748717441251,-1080.62,0.00018082,2]
[363395046,1748717441260,-430.0,0.00018082,2]
[363395048,1748717441270,-1098.56,0.00018082,2]
[363395050,1748717441279,-430.0,0.00018082,2]
[363395052,1748717441289,-745.5,0.00018082,2]
[363395054,1748717441298,-565.87,0.00018082,2]
[363395056,1748717441312,-816.56,0.00018082,2]
[363395058,1748717441322,-430.0,0.00018082,2]
[363395060,1748717441332,-430.0,0.00018082,2]
[363395062,1748717441341,-773.61,0.00018082,2]
[363395064,1748717441351,-430.0,0.00018082,2]
[363395066,1748717441361,-1167.74,0.00018082,2]
[363395068,1748717441371,-430.0,0.00018082,2]
[363395070,1748717441382,-430.0,0.00018082,2]
[363395072,1748717441391,-430.0,0.00018082,2]
[363395074,1748717441401,-1044.87,0.00018082,2]
[363395076,1748717441411,-430.0,0.00018082,2]
[363395078,1748717441421,-430.0,0.00018082,2]
[363395080,1748717441431,-430.0,0.00018082,2]
[363395082,1748717441441,-1363.6115263,0.00018256,2]
[363395084,1748717441451,-1880.99292003,0.00018279,2]
[363395086,1748717441461,-430.0,0.00018356,2]
[363395089,1748717441471,-430.0,0.00018356,2]
[363395091,1748717441480,-430.0,0.00018356,2]
[363395093,1748717441490,-481.69,0.00018356,2]
[363395095,1748717441500,-430.0,0.00018356,2]
[363395097,1748717441509,-576.5,0.00018356,2]
[363395099,1748717441519,-430.0,0.00018356,2]
[363395101,1748717441529,-754.05,0.00018356,2]
[363395103,1748717441539,-430.0,0.00018356,2]
[363395105,1748717441551,-430.0,0.00018356,2]
[363395107,1748717441561,-1550.43,0.00018356,2]
[363395109,1748717441571,-1471.28,0.00018356,2]
[363395111,1748717441581,-430.0,0.00018356,2]
[363395113,1748717441591,-827.98,0.00018356,2]
[363395115,1748717441602,-626.27,0.00018356,2]
[363395117,1748717441612,-710.63,0.00018356,2]
[363395120,1748717441623,-430.0,0.00018356,2]
[363395122,1748717441633,-430.0,0.00018356,2]
[363395124,1748717441643,-460.21,0.00018356,2]
[363395126,1748717441656,-1487.83,0.00018356,2]
[363395128,1748717441666,-430.0,0.00018356,2]
[363395130,1748717441677,-430.0,0.00018356,2]
[363395132,1748717441686,-167.27,0.00018356,2]
[363395134,1748717441696,-1080.62,0.00018356,2]
[363395136,1748717441706,-230.57060574,0.00018356,2]
[363395138,1748717441715,-1098.56,0.00018356,2]
[363395140,1748717441726,-430.0,0.00018356,2]
[363395142,1748717441737,-745.5,0.00018356,2]
[363395144,1748717441746,-565.87,0.00018356,2]
[363395146,1748717441756,-816.56,0.00018356,2]
[363395148,1748717441766,-430.0,0.00018356,2]
[363395150,1748717441778,-430.0,0.00018356,2]
[363395152,1748717441787,-773.61,0.00018356,2]
[363395154,1748717441797,-174.92009233,0.00018356,2]
[363395156,1748717441807,-1167.74,0.00018356,2]
[363395158,1748717441817,-430.0,0.00018356,2]
[363395160,1748717441827,-430.0,0.00018356,2]
[363395163,1748717441837,-430.0,0.00018356,2]
[363395165,1748717441847,-1044.87,0.00018356,2]
[363395167,1748717441857,-279.6512153,0.00018356,2]
[363395169,1748717441866,-430.0,0.00018356,2]
[363395171,1748717441876,-256.94,0.00018356,2]
[363395173,1748717441886,-300.0,0.00018482,2]
[363395175,1748717441896,-587.0,0.00018483,2]
[363395177,1748717441906,-151.0,0.00018555,2]
[363395179,1748717441916,-1880.99292003,0.00018555,2]
[363395181,1748717441926,-231.871531,0.0001863,2]
[363395183,1748717441936,-231.871531,0.0001863,2]
[363395185,1748717441946,-430.0,0.0001863,2]
[363395187,1748717441956,-430.0,0.0001863,2]
[363395189,1748717441966,-430.0,0.0001863,2]
[363395191,1748717441976,-481.69,0.0001863,2]
[363395193,1748717441986,-528.64,0.0001863,2]
[363395195,1748717442000,-576.5,0.0001863,2]
[363395197,1748717442010,-430.0,0.0001863,2]
[363395199,1748717442020,-754.05,0.0001863,2]
[363395201,1748717442030,-540.95,0.0001863,2]
[363395204,1748717442042,-430.0,0.0001863,2]
[363395206,1748717442052,-1550.43,0.0001863,2]
[363395208,1748717442061,-1471.28,0.0001863,2]
[363395210,1748717442073,-430.0,0.0001863,2]
[363395212,1748717442084,-827.98,0.0001863,2]
[363395213,1748717442094,-626.27,0.0001863,2]
[363395216,1748717442104,-710.63,0.0001863,2]
[363395218,1748717442115,-430.0,0.0001863,2]
[363395220,1748717442128,-430.0,0.0001863,2]
[363395222,1748717442141,-460.21,0.0001863,2]
[363395224,1748717442154,-1487.83,0.0001863,2]
[363395226,1748717442164,-430.0,0.0001863,2]
[363395228,1748717442174,-430.0,0.0001863,2]
[363395230,1748717442183,-1080.62,0.0001863,2]
[363395232,1748717442193,-1098.56,0.0001863,2]
[363395234,1748717442204,-430.0,0.0001863,2]
[363395236,1748717442214,-745.5,0.0001863,2]
[363395238,1748717442224,-565.87,0.0001863,2]
[363395240,1748717442234,-816.56,0.0001863,2]
[363395242,1748717442244,-430.0,0.0001863,2]
[363395244,1748717442253,-430.0,0.0001863,2]
[363395246,1748717442263,-773.61,0.0001863,2]
[363395247,1748717442272,-1167.74,0.0001863,2]
[363395248,1748717442282,-430.0,0.0001863,2]
[363395249,1748717442291,-430.0,0.0001863,2]
[363395252,1748717442301,-430.0,0.0001863,2]
[363395256,1748717442311,-1044.87,0.0001863,2]
[363395259,1748717442321,-430.0,0.0001863,2]
[363395262,1748717442331,-5000.0,0.00018697,2]
[363395264,1748717442340,-1880.99292003,0.00018831,2]
[363395266,1748717442350,-1007.88444412,0.000189,2]
[363395268,1748717442359,-430.0,0.00018904,2]
[363395270,1748717442370,-430.0,0.00018904,2]
[363395272,1748717442380,-430.0,0.00018904,2]
[363395274,1748717442389,-481.69,0.00018904,2]
[363395275,1748717442399,-576.5,0.00018904,2]
[363395276,1748717442409,-430.0,0.00018904,2]
[363395277,1748717442418,-754.05,0.00018904,2]
[363395278,1748717442429,-430.0,0.00018904,2]
[363395279,1748717442439,-1550.43,0.00018904,2]
[363395280,1748717442449,-1471.28,0.00018904,2]
[363395281,1748717442459,-430.0,0.00018904,2]
[363395283,1748717442470,-827.98,0.00018904,2]
[363395284,1748717442480,-626.27,0.00018904,2]
[363395285,1748717442490,-710.63,0.00018904,2]
[363395286,1748717442500,-430.0,0.00018904,2]
[363395288,1748717442510,-430.0,0.00018904,2]
[363395290,1748717442520,-460.21,0.00018904,2]
[363395292,1748717442530,-1487.83,0.00018904,2]
[363395294,1748717442540,-430.0,0.00018904,2]
[363395296,1748717442550,-430.0,0.00018904,2]
[363395298,1748717442559,-1080.62,0.00018904,2]
[363395300,1748717442569,-1098.56,0.00018904,2]
[363395302,1748717442579,-430.0,0.00018904,2]
[363395304,1748717442589,-745.5,0.00018904,2]
[363395306,1748717442599,-565.87,0.00018904,2]
[363395309,1748717442609,-816.56,0.00018904,2]
[363395311,1748717442620,-430.0,0.00018904,2]
[363395313,1748717442630,-430.0,0.00018904,2]
[363395315,1748717442640,-773.61,0.00018904,2]
[363395317,1748717442650,-1167.74,0.00018904,2]
[363395319,1748717442660,-430.0,0.00018904,2]
[363395321,1748717442669,-430.0,0.00018904,2]
[363395323,1748717442679,-430.0,0.00018904,2]
[363395325,1748717442688,-1044.87,0.00018904,2]
[363395328,1748717442698,-495.02478374,0.00018904,2]
[363395330,1748717442718,-5589.89,0.00018993,2]
[363395332,1748717442729,-1363.6115263,0.00019078,2]
[363395334,1748717442738,-1880.99292003,0.00019107,2]
[363395336,1748717442748,-151.0,0.00019178,2]
[363395338,1748717442758,-430.0,0.00019178,2]
[363395340,1748717442768,-430.0,0.00019178,2]
[363395342,1748717442778,-481.69,0.00019178,2]
[363395344,1748717442788,-576.5,0.00019178,2]
[363395347,1748717442798,-500.0,0.00019178,2]
[363395349,1748717442807,-500.0,0.00019178,2]
[363395351,1748717442817,-500.0,0.00019178,2]
[363395353,1748717442827,-500.0,0.00019178,2]
[363395355,1748717442837,-500.0,0.00019178,2]
[363395357,1748717442846,-260.01190599,0.00019178,2]
[363395359,1748717442856,-500.0,0.00019178,2]
[363395361,1748717442866,-250.0,0.00019178,2]
[363395363,1748717442876,-754.05,0.00019178,2]
[363395365,1748717442886,-1550.43,0.00019178,2]
[363395367,1748717442896,-500.0,0.00019178,2]
[363395369,1748717442906,-430.0,0.00019178,2]
[363395371,1748717442916,-430.0,0.00019178,2]
[363395373,1748717442926,-430.0,0.00019178,2]
[363395375,1748717442937,-430.0,0.00019178,2]
[363395377,1748717442948,-430.0,0.00019178,2]
[363395379,1748717442960,-430.0,0.00019178,2]
[363395382,1748717442971,-430.0,0.00019178,2]
[363395384,1748717442984,-430.0,0.00019178,2]
[363395386,1748717442999,-430.0,0.00019178,2]
[363395388,1748717443009,-430.0,0.00019178,2]
[363395390,1748717443019,-430.0,0.00019178,2]
[363395392,1748717443029,-1471.28,0.00019178,2]
[363395394,1748717443039,-500.0,0.00019178,2]
[363395396,1748717443049,-500.0,0.00019178,2]
[363395398,1748717443059,-575.0,0.00019178,2]
[363395400,1748717443072,-375.0,0.00019178,2]
[363395402,1748717443082,-430.0,0.00019178,2]
[363395405,1748717443093,-827.98,0.00019178,2]
[363395409,1748717443104,-626.27,0.00019178,2]
[363395412,1748717443114,-710.63,0.00019178,2]
[363395414,1748717443124,-430.0,0.00019178,2]
[363395416,1748717443134,-430.0,0.00019178,2]
[363395418,1748717443144,-460.21,0.00019178,2]
[363395420,1748717443154,-1487.83,0.00019178,2]
[363395422,1748717443164,-263.24195761,0.00019178,2]
[363395424,1748717443174,-227.41041047,0.00019178,2]
[363395426,1748717443185,-430.0,0.00019178,2]
[363395428,1748717443195,-300.0,0.00019178,2]
[363395430,1748717443204,-1080.62,0.00019178,2]
[363395432,1748717443214,-1098.56,0.00019178,2]
[363395434,1748717443223,-430.0,0.00019178,2]
[363395437,1748717443233,-745.5,0.00019178,2]
[363395439,1748717443243,-565.87,0.00019178,2]
[363395441,1748717443253,-816.56,0.00019178,2]
[363395443,1748717443262,-430.0,0.00019178,2]
[363395445,1748717443272,-511.01438367,0.00019178,2]
[363395447,1748717443281,-773.61,0.00019178,2]
[363395449,1748717443291,-1167.74,0.00019178,2]
[363395451,1748717443301,-430.0,0.00019178,2]
[363395453,1748717443311,-430.0,0.00019178,2]
[363395455,1748717443320,-430.0,0.00019178,2]
[363395457,1748717443330,-1044.87,0.00019178,2]
[363395459,1748717443340,-151.0,0.00019178,2]
[363395461,1748717443351,-161.198787,0.00019178,2]
[363395463,1748717443361,-156.587,0.00019233,2]
[363395465,1748717443372,-500.0,0.0001926,2]
[363395467,1748717443382,-151.0,0.0001926,2]
[363395470,1748717443392,-503.22756218,0.00019287,2]
[363395472,1748717443403,-151.0,0.00019287,2]
[363395474,1748717443413,-162.380719,0.00019288,2]
[363395476,1748717443422,-151.0,0.000193,2]
[363395478,1748717443432,-151.0,0.000193,2]
[363395480,1748717443442,-151.0,0.00019315,2]
[363395482,1748717443452,-30191.14888411,0.00019329,2]
[363395484,1748717443461,-202.57043117,0.00019342,2]
[363395486,1748717443471,-311.21881021,0.00019343,2]
[363395488,1748717443480,-1880.99292003,0.00019383,2]
[363395490,1748717443491,-231.871531,0.00019452,2]
[363395492,1748717443501,-231.871531,0.00019452,2]
[363395494,1748717443510,-527.59,0.00019452,2]
[363395496,1748717443520,-430.0,0.00019452,2]
[363395498,1748717443530,-481.69,0.00019452,2]
[363395500,1748717443540,-576.5,0.00019452,2]
[363395503,1748717443550,-754.05,0.00019452,2]
[363395505,1748717443560,-1550.43,0.00019452,2]
[363395507,1748717443570,-430.0,0.00019452,2]
[363395509,1748717443579,-1471.28,0.00019452,2]
[363395511,1748717443588,-430.0,0.00019452,2]
[363395513,1748717443599,-827.98,0.00019452,2]
[363395521,1748717443669,-626.27,0.00019452,2]
[363395523,1748717443678,-710.63,0.00019452,2]
[363395526,1748717443688,-430.0,0.00019452,2]
[363395528,1748717443699,-430.0,0.00019452,2]
[363395530,1748717443708,-460.21,0.00019452,2]
[363395532,1748717443718,-1487.83,0.00019452,2]
[363395534,1748717443727,-430.0,0.00019452,2]
[363395536,1748717443736,-1080.62,0.00019452,2]
[363395538,1748717443745,-1098.56,0.00019452,2]
[363395540,1748717443755,-430.0,0.00019452,2]
[363395542,1748717443768,-745.5,0.00019452,2]
[363395544,1748717443778,-565.87,0.00019452,2]
[363395546,1748717443788,-816.56,0.00019452,2]
[363395548,1748717443798,-430.0,0.00019452,2]
[363395550,1748717443808,-773.61,0.00019452,2]
[363395552,1748717443817,-1167.74,0.00019452,2]
[363395555,1748717443827,-430.0,0.00019452,2]
[363395556,1748717443837,-526.99493233,0.00019452,2]
[363395559,1748717443846,-430.0,0.00019452,2]
[363395561,1748717443856,-1044.87,0.00019452,2]
[363395563,1748717443866,-151.0,0.000196,2]
[363395565,1748717443876,-151.0,0.000196,2]
[363395567,1748717443885,-1880.99292003,0.00019659,2]
[363395569,1748717443895,-151.0,0.00019726,2]
[363395571,1748717443905,-430.0,0.00019726,2]
[363395573,1748717443915,-481.69,0.00019726,2]
[363395575,1748717443925,-576.5,0.00019726,2]
[363395577,1748717443934,-754.05,0.00019726,2]
[363395579,1748717443945,-1550.43,0.00019726,2]
[363395581,1748717443955,-430.0,0.00019726,2]
[363395583,1748717443965,-1471.28,0.00019726,2]
[363395585,1748717443975,-430.0,0.00019726,2]
[363395587,1748717443985,-827.98,0.00019726,2]
[363395589,1748717444000,-626.27,0.00019726,2]
[363395591,1748717444010,-710.63,0.00019726,2]
[363395594,1748717444021,-282.67,0.00019726,2]
[363395596,1748717444031,-430.0,0.00019726,2]
[363395598,1748717444041,-460.21,0.00019726,2]
[363395600,1748717444052,-1487.83,0.00019726,2]
[363395602,1748717444061,-430.0,0.00019726,2]
[363395603,1748717444072,-1080.62,0.00019726,2]
[363395605,1748717444083,-1098.56,0.00019726,2]
[363395607,1748717444093,-430.0,0.00019726,2]
[363395610,1748717444103,-745.5,0.00019726,2]
[363395612,1748717444113,-565.87,0.00019726,2]
[363395614,1748717444123,-816.56,0.00019726,2]
[363395615,1748717444133,-430.0,0.00019726,2]
[363395617,1748717444142,-773.61,0.00019726,2]
[363395619,1748717444152,-1167.74,0.00019726,2]
[363395621,1748717444163,-430.0,0.00019726,2]
[363395623,1748717444174,-430.0,0.00019726,2]
[363395626,1748717444184,-1044.87,0.00019726,2]
[363395627,1748717444193,-229.18523208,0.00019726,3]
[363395630,1748717444203,-207.4,0.0001983,2]
[363395632,1748717444214,-5000.0,0.0001983,2]
[363395634,1748717444224,-180.69465561,0.00019834,2]
[363395636,1748717444233,-287.336,0.00019834,2]
[363395638,1748717444243,-11179.79,0.00019897,2]
[363395640,1748717444252,-1363.6115263,0.000199,2]
[363395642,1748717444262,-1880.99292003,0.00019934,2]
[363395644,1748717444272,-900.0,0.00019964,2]
[363395646,1748717444282,-501.32510502,0.00019973,2]
[363395648,1748717444291,-500.0,0.00019973,2]
[363395650,1748717444301,-500.0,0.00019973,2]
[363395652,1748717444310,-500.0,0.00019973,2]
[363395654,1748717444320,-500.0,0.00019973,2]
[363395656,1748717444330,-500.0,0.00019973,2]
[363395658,1748717444339,-728138.13460143,0.0002,2]
[363395660,1748717444349,-151.0,0.0002,2]
[363395662,1748717444359,-151.0,0.0002,2]
[363395664,1748717444369,-151.0,0.0002,2]
[363395666,1748717444378,-264.33,0.0002,2]
[363395668,1748717444388,-209.892187,0.0002,2]
[363395670,1748717444398,-209.892187,0.0002,2]
[363395672,1748717444407,-242.336044,0.0002,2]
[363395674,1748717444417,-242.336044,0.0002,2]
[363395676,1748717444427,-481.69,0.0002,2]
[363395678,1748717444437,-151.0,0.0002,2]
[363395680,1748717444447,-151.0,0.0002,2]
[363395682,1748717444457,-576.5,0.0002,2]
[363395685,1748717444467,-754.05,0.0002,2]
[363395686,1748717444477,-1073.259671,0.0002,2]
[363395689,1748717444487,-1073.259671,0.0002,2]
[363395691,1748717444497,-151.0,0.0002,2]
[363395693,1748717444507,-151.0,0.0002,2]
[363395695,1748717444519,-1550.43,0.0002,2]
[363395697,1748717444530,-430.0,0.0002,2]
[363395699,1748717444540,-151.0,0.0002,2]
[363395701,1748717444549,-1471.28,0.0002,2]
[363395703,1748717444560,-430.0,0.0002,2]
[363395705,1748717444570,-827.98,0.0002,2]
[363395707,1748717444580,-626.27,0.0002,2]
[363395709,1748717444590,-246.442502,0.0002,2]
[363395712,1748717444600,-710.63,0.0002,2]
[363395714,1748717444610,-246.442502,0.0002,2]
[363395715,1748717444621,-152.884356,0.0002,2]
[363395717,1748717444631,-430.0,0.0002,2]
[363395719,1748717444641,-460.21,0.0002,2]
[363395722,1748717444651,-1487.83,0.0002,2]
[363395724,1748717444661,-430.0,0.0002,2]
[363395726,1748717444671,-1080.62,0.0002,2]
[363395728,1748717444682,-1098.56,0.0002,2]
[363395730,1748717444692,-430.0,0.0002,2]
[363395732,1748717444702,-151.0,0.0002,2]
[363395734,1748717444714,-745.5,0.0002,2]
[363395736,1748717444724,-565.87,0.0002,2]
[363395738,1748717444734,-816.56,0.0002,2]
[363395740,1748717444744,-430.0,0.0002,2]
[363395742,1748717444754,-773.61,0.0002,2]
[363395744,1748717444764,-1167.74,0.0002,2]
[363395746,1748717444774,-430.0,0.0002,2]
[363395749,1748717444784,-1044.87,0.0002,2]
[363395751,1748717444794,-172.1218959,0.00020148,5]
[363395753,1748717444804,-797.45008,0.00020187,2]
[363395755,1748717444814,-1880.99292003,0.0002021,2]
[363395757,1748717444824,-823.0,0.0002022,2]
[363395759,1748717444833,-231.871531,0.00020273,2]
[363395761,1748717444843,-231.871531,0.00020273,2]
[363395763,1748717444853,-481.69,0.00020273,2]
[363395765,1748717444863,-576.5,0.00020273,2]
[363395767,1748717444872,-754.05,0.00020273,2]
[363395769,1748717444882,-1550.43,0.00020273,2]
[363395771,1748717444892,-430.0,0.00020273,2]
[363395773,1748717444902,-1471.28,0.00020273,2]
[363395775,1748717444912,-430.0,0.00020273,2]
[363395777,1748717444922,-827.98,0.00020273,2]
[363395779,1748717444933,-626.27,0.00020273,2]
[363395781,1748717444943,-710.63,0.00020273,2]
[363395783,1748717444953,-430.0,0.00020273,2]
[363395785,1748717444963,-460.21,0.00020273,2]
[363395787,1748717444973,-1487.83,0.00020273,2]
[363395789,1748717444983,-430.0,0.00020273,2]
[363395791,1748717444995,-1080.62,0.00020273,2]
[363395793,1748717445006,-1098.56,0.00020273,2]
[363395795,1748717445015,-430.0,0.00020273,2]
[363395797,1748717445025,-745.5,0.00020273,2]
[363395799,1748717445035,-565.87,0.00020273,2]
[363395801,1748717445045,-816.56,0.00020273,2]
[363395803,1748717445055,-430.0,0.00020273,2]
[363395805,1748717445066,-773.61,0.00020273,2]
[363395807,1748717445076,-1167.74,0.00020273,2]
[363395809,1748717445086,-293.21836005,0.00020273,2]
[363395812,1748717445096,-1044.87,0.00020273,2]
[363395814,1748717445106,-1880.99292003,0.00020486,3]
[363395816,1748717445116,-1000.0,0.00020521,2]
[363395818,1748717445127,-797.49248903,0.00020521,2]
[363395820,1748717445137,-151.0,0.00020547,2]
[363395822,1748717445147,-481.69,0.00020547,2]
[363395824,1748717445158,-576.5,0.00020547,2]
[363395826,1748717445168,-754.05,0.00020547,2]
[363395828,1748717445178,-1550.43,0.00020547,2]
[363395830,1748717445188,-430.0,0.00020547,2]
[363395832,1748717445200,-1471.28,0.00020547,2]
[363395834,1748717445210,-430.0,0.00020547,2]
[363395836,1748717445219,-827.98,0.00020547,2]
[363395838,1748717445229,-626.27,0.00020547,2]
[363395840,1748717445238,-710.63,0.00020547,2]
[363395842,1748717445249,-430.0,0.00020547,2]
[363395844,1748717445259,-460.21,0.00020547,2]
[363395846,1748717445269,-1487.83,0.00020547,2]
[363395848,1748717445278,-430.0,0.00020547,2]
[363395850,1748717445289,-1080.62,0.00020547,2]
[363395852,1748717445299,-1098.56,0.00020547,2]
[363395854,1748717445308,-430.0,0.00020547,2]
[363395856,1748717445318,-745.5,0.00020547,2]
[363395859,1748717445329,-565.87,0.00020547,2]
[363395861,1748717445339,-816.56,0.00020547,2]
[363395863,1748717445349,-430.0,0.00020547,2]
[363395865,1748717445359,-773.61,0.00020547,2]
[363395867,1748717445369,-1167.74,0.00020547,2]
[363395869,1748717445379,-1044.87,0.00020547,2]
[363395871,1748717445389,-287.35,0.000206,2]
[363395873,1748717445399,-68593.56,0.000206,2]
[363395875,1748717445409,-1880.99292003,0.00020762,3]
[363395877,1748717445418,-3220.85752411,0.00020802,2]
[363395881,1748717445443,-438.36119632,0.00020802,2]
[363395898,1748717445598,-9060.23862236,0.00020802,2]
[363395900,1748717445610,-2297.51,0.00020802,2]
[363395903,1748717445623,-1752.71265721,0.00020802,2]
[363395905,1748717445633,-151.0,0.00020821,2]
[363395907,1748717445642,-481.69,0.00020821,2]
[363395909,1748717445652,-4.82071884,0.00020821,2]
[363395913,1748717445680,-271.22152529,0.00020821,2]
[363395932,1748717445854,-430.0,0.00016438,2]
[363395934,1748717445864,-311.13,0.00016438,2]
[363395936,1748717445875,-430.0,0.00016438,2]
[363395939,1748717445885,-430.0,0.00016712,2]
[363395941,1748717445894,-430.0,0.00016712,2]
[363395943,1748717445904,-430.0,0.00016986,2]
[363395945,1748717445914,-300.0,0.00018081,2]
[363395947,1748717445923,-754.05,0.00020821,2]
[363395949,1748717445933,-1550.43,0.00020821,2]
[363395951,1748717445943,-430.0,0.00020821,2]
[363395953,1748717445953,-1471.28,0.00020821,2]
[363395955,1748717445962,-430.0,0.00020821,2]
[363395957,1748717445972,-827.98,0.00020821,2]
[363395959,1748717445982,-626.27,0.00020821,2]
[363395961,1748717445993,-710.63,0.00020821,2]
[363395963,1748717446004,-430.0,0.00020821,2]
[363395965,1748717446014,-460.21,0.00020821,2]
[363395967,1748717446024,-1487.83,0.00020821,2]
[363395969,1748717446035,-433.75,0.00020821,2]
[363395971,1748717446047,-1080.62,0.00020821,2]
[363395973,1748717446057,-1098.56,0.00020821,2]
[363395975,1748717446067,-430.0,0.00020821,2]
[363395977,1748717446076,-745.5,0.00020821,2]
[363395979,1748717446087,-816.56,0.00020821,2]
[363395982,1748717446097,-565.87,0.00020821,2]
[363395984,1748717446107,-430.0,0.00020821,2]
[363395986,1748717446116,-773.61,0.00020821,2]
[363395988,1748717446131,-1167.74,0.00020821,2]
[363395990,1748717446143,-1044.87,0.00020821,2]
[363395992,1748717446153,-106785.75940357,0.00020971,2]
[363395995,1748717446165,-16905.08128229,0.00020971,2]
[363396010,1748717446301,157.39788135,6.8e-07,2]
[363396060,1748717446987,-430.0,0.00016438,2]
[363396062,1748717447001,-430.0,0.00016712,2]
[363396064,1748717447011,-430.0,0.00016986,2]
[363396066,1748717447020,-430.0,0.00016986,2]
[363396068,1748717447029,-430.0,0.0001726,2]
[363396070,1748717447039,-430.0,0.0001726,2]
[363396072,1748717447048,-430.0,0.00017534,2]
[363396074,1748717447058,-430.0,0.00017534,2]
[363396076,1748717447068,-430.0,0.00017808,2]
[363396078,1748717447077,-430.0,0.00017808,2]
[363396080,1748717447087,-461.13,0.00018082,2]
[363396082,1748717447096,-150.0,0.000189,2]
[363396084,1748717447106,-343.656302,0.00020971,2]
[363396086,1748717447117,-933.61318001,0.00020971,2]
[363396088,1748717447130,-788.20026824,0.00020971,2]
[363403052,1748717632428,798.143648,0.00013699,2]
[363403217,1748717672088,172.1218959,0.00024166,120]
[363403511,1748717744055,211.31078198,6.8e-07,2]
[363404811,1748718152731,409190.739,0.00024649,120]
[363405169,1748718253232,693.48047982,0.00015,2]
[363405388,1748718313098,502.76699825,0.00015,2]
[363405520,1748718345160,157.39788139,6.8e-07,2]
[363405622,1748718373867,504.38300175,0.00015,2]
[363406179,1748718550135,-178.19401734,0.00015272,2]
[363406442,1748718632039,-204.7712234,0.00015253,2]
[363406444,1748718632050,-4.81257476,0.00015272,2]
[363406446,1748718632060,-90.41771624,0.00015394,2]
[363406449,1748718632072,-228.67128476,0.00015394,2]
[363406451,1748718632082,-300.0,0.00015572,2]
[363406453,1748718632092,-1777.81067068,0.00015573,2]
[363406459,1748718632142,-12201.54200822,0.00015573,2]
[363406461,1748718632153,-162.0260999,0.00015784,2]
[363406463,1748718632164,-232.63946641,0.00016428,2]
[363406465,1748718632173,-154.66052309,0.00016437,2]
[363406467,1748718632183,-160.0,0.00016437,2]
[363406468,1748718632193,-271.12052583,0.00016438,2]
[363406471,1748718632202,-481.69763156,0.00016438,2]
[363406474,1748718632211,-333.56687481,0.00016438,2]
[363406477,1748718632221,-430.0,0.00016438,2]
[363406480,1748718632231,-432.38763229,0.00016438,2]
[363406483,1748718632241,-490.0,0.00016438,2]
[363406486,1748718632250,-279.49,0.00016438,2]
[363406489,1748718632260,-500.0,0.00016438,2]
[363406492,1748718632271,-500.0,0.00016438,2]
[363406495,1748718632281,-500.0,0.00016438,2]
[363406499,1748718632291,-500.0,0.00016438,2]